bitfinex-derivatives/quotes_BNBF0:USTF0_20250329
["timestamp","ask_amount","ask_price","bid_price","bid_amount"]
[1743232968462,0.32918559,607.56,606.57,0.29760942]
[1743232968864,0.32918559,607.56,606.56,0.926]
[1743232969566,0.61659865,607.95,606.57,0.32972286]
[1743232969765,0.28666395,607.72,606.57,0.32972286]
[1743232970165,0.32897983,607.94,606.57,0.32972286]
[1743232970464,0.30273059,607.93,606.57,0.32972286]
[1743232970662,0.32899065,607.92,606.57,0.32972286]
[1743232970862,0.32899065,607.92,606.58,1.151]
[1743232971065,0.30273059,607.91,606.58,1.151]
[1743232971366,0.32900148,607.9,606.58,1.151]
[1743232971560,0.30273059,607.89,606.58,1.151]
[1743232971759,0.3290123,607.88,606.58,1.151]
[1743232971962,0.30273059,607.87,606.58,1.151]
[1743232972163,0.32902313,607.86,606.58,1.151]
[1743232972363,0.30273059,607.85,606.58,1.151]
[1743232972561,0.32903395,607.84,606.58,1.151]
[1743232972865,0.30273059,607.83,606.58,1.151]
[1743232973068,0.63176995,607.83,606.58,1.151]
[1743232973269,0.28665923,607.82,606.58,1.151]
[1743232973465,0.58938982,607.82,606.58,1.151]
[1743232973763,0.30273059,607.81,606.58,1.151]
[1743232976165,0.28666159,607.8,606.58,1.151]
[1743232976572,0.30273059,607.79,606.58,1.151]
[1743232979072,0.30273059,607.82,606.58,1.151]
[1743232979273,0.28666395,607.78,606.58,1.151]
[1743232980174,0.28666395,607.78,606.59,0.774]
[1743232980675,0.30273301,607.77,606.6,0.29757339]
[1743232980973,0.30273301,607.77,606.59,0.774]
[1743232981674,0.30273301,607.77,606.6,0.29758388]
[1743232982077,0.30273301,607.82,606.6,0.29758388]
[1743232982273,0.30273301,607.81,606.6,0.29758388]
[1743232982471,0.28665214,607.76,606.6,0.29758388]
[1743232982876,0.30273301,607.75,606.6,0.29758388]
[1743232983173,0.30273301,607.75,606.59,0.774]
[1743232984278,0.30273301,607.75,606.6,0.29758404]
[1743232984778,0.30273301,607.75,606.59,0.774]
[1743232985077,0.30273301,607.75,606.6,0.29758539]
[1743232985274,0.28666041,607.74,606.59,0.774]
[1743232985477,0.58939342,607.74,606.59,0.774]
[1743232985679,0.30273301,607.73,606.6,0.29758406]
[1743232986884,0.30273301,607.73,606.61,0.32970112]
[1743232987079,0.32903936,607.83,606.61,0.32970112]
[1743232987380,0.28662971,607.81,606.62,0.29758406]
[1743232987576,0.28662971,607.81,606.61,0.32970112]
[1743232987781,0.28662971,607.81,606.62,0.29751743]
[1743232987981,0.32903936,607.83,606.62,0.29751743]
[1743232988183,0.30267045,607.82,606.62,0.29751743]
[1743232988381,0.28661673,607.81,606.62,0.29751743]
[1743232989183,0.28661673,607.81,606.63,0.32969025]
[1743232989483,0.28661673,607.81,606.64,0.29751743]
[1743232989677,0.28661673,607.81,606.65,0.32967938]
[1743232989982,0.28661673,607.81,606.66,0.29751743]
[1743232990282,0.28661673,607.81,606.67,0.32966851]
[1743232990584,0.28661673,607.81,606.68,0.29751743]
[1743232990783,0.28661673,607.81,606.69,0.32965765]
[1743232991085,0.32903936,607.83,606.7,0.29751743]
[1743232991383,0.30267058,607.82,606.7,0.29751743]
[1743232991584,0.28660847,607.81,606.7,0.29751743]
[1743232991983,0.30267437,607.8,606.7,0.29751743]
[1743232992184,0.30267437,607.8,606.71,0.857]
[1743232992491,0.30267437,607.8,606.72,0.29751743]
[1743232992884,0.28660847,607.81,606.72,0.29751743]
[1743232993079,0.30266566,607.8,606.72,0.29751743]
[1743232993283,0.30266566,607.8,606.73,0.32963591]
[1743232993583,0.28660847,607.81,606.73,0.32963591]
[1743232993883,0.32903936,607.83,606.73,0.32963591]
[1743232997685,0.32903936,607.83,606.74,0.975]
[1743232997986,0.2865648,607.94,606.74,0.975]
[1743232998882,2.50993003,609.26,606.75,0.29726669]
[1743232999088,0.32833174,609.14,606.75,0.29726669]
[1743232999390,0.3024341,609.13,606.77,0.32961418]
[1743232999585,0.32839644,609.02,606.78,0.29726669]
[1743232999787,0.3024341,609.01,606.8,0.32959789]
[1743232999987,0.32845576,608.91,606.81,0.29726669]
[1743233000287,0.3024341,608.9,606.83,0.32958159]
[1743233000584,0.32847194,608.88,606.84,0.29726669]
[1743233000887,0.3024341,608.87,606.84,0.29726669]
[1743233001085,0.3024341,608.87,606.86,0.3295653]
[1743233001288,0.3024341,608.87,606.87,0.29726669]
[1743233001790,0.3024341,608.87,606.89,0.32954901]
[1743233002089,0.32848813,608.85,606.9,0.29726669]
[1743233002290,0.32848813,608.85,606.92,0.32953272]
[1743233002489,0.3024341,608.84,606.93,0.29726669]
[1743233002688,0.32850431,608.82,606.95,0.32951643]
[1743233003085,0.3024341,608.81,606.96,0.29726669]
[1743233003388,0.3285205,608.79,606.97,0.32950557]
[1743233003589,0.3024341,608.78,606.98,0.29726669]
[1743233003792,0.32853669,608.76,606.99,0.32949471]
[1743233003991,0.3024341,608.75,607.0,0.29726669]
[1743233004292,0.32855288,608.73,607.01,0.32948386]
[1743233004689,0.3024341,608.72,607.02,0.29726669]
[1743233004886,0.3024341,608.72,607.03,0.329473]
[1743233005087,0.32856908,608.7,607.03,0.329473]
[1743233005292,0.32856908,608.7,607.04,0.29726669]
[1743233005490,0.3024341,608.69,607.05,0.32946215]
[1743233005692,0.32858527,608.67,607.06,0.29726669]
[1743233005994,0.3024341,608.66,607.07,0.32945129]
[1743233006293,0.32860147,608.64,607.08,0.29726669]
[1743233006495,0.3024341,608.63,607.09,0.32944044]
[1743233006692,0.32861766,608.61,607.1,0.29726669]
[1743233006893,0.3024341,608.6,607.11,0.32942959]
[1743233007093,0.32862846,608.59,607.11,0.32942959]
[1743233007388,0.3024341,608.58,607.12,0.29726669]
[1743233007592,0.32863926,608.57,607.12,0.29726669]
[1743233007893,0.3024341,608.56,607.12,0.29726669]
[1743233008095,0.32865006,608.55,607.12,0.29726669]
[1743233008396,0.3024341,608.54,607.12,0.29726669]
[1743233008594,0.32866087,608.53,607.12,0.29726669]
[1743233008794,0.3024341,608.52,607.12,0.29726669]
[1743233008995,0.32867167,608.51,607.12,0.29726669]
[1743233009196,0.61504782,608.51,607.12,0.29726669]
[1743233009398,0.61504782,608.51,607.11,0.32942959]
[1743233009595,0.30245468,608.5,607.12,0.29729581]
[1743233009795,0.32868247,608.49,607.12,0.29729581]
[1743233009989,0.30245468,608.48,607.12,0.29729581]
[1743233010190,0.32869327,608.47,607.12,0.29729581]
[1743233010391,0.30245468,608.46,607.13,0.833]
[1743233010790,0.32870408,608.45,607.13,0.833]
[1743233011195,0.30245468,608.44,607.13,0.833]
[1743233011397,0.32871488,608.43,607.13,0.833]
[1743233011897,0.30245468,608.42,607.13,0.833]
[1743233012096,0.32872569,608.41,607.13,0.833]
[1743233012498,0.30245468,608.4,607.13,0.833]
[1743233012698,0.3287365,608.39,607.13,0.833]
[1743233012897,0.30245468,608.38,607.13,0.833]
[1743233013698,0.30245468,608.38,607.14,0.29731359]
[1743233014198,0.63119658,608.38,607.14,0.29731359]
[1743233014398,0.3287473,608.37,607.14,0.29731359]
[1743233014598,0.63120198,608.37,607.14,0.29731359]
[1743233014800,0.30245468,608.36,607.14,0.29731359]
[1743233014993,0.63120739,608.36,607.14,0.29731359]
[1743233015197,0.30245468,608.35,607.14,0.29731359]
[1743233018500,0.28639618,608.34,607.14,0.29731359]
[1743233018801,0.30245468,608.33,607.14,0.29731359]
[1743233020197,0.30245468,608.33,607.15,0.698]
[1743233020398,0.30245468,608.33,607.15,1.779]
[1743233020601,0.30245468,608.33,607.16,0.29731359]
[1743233021101,0.30245468,608.35,607.16,0.29731359]
[1743233021295,0.30245468,608.32,607.16,0.29731359]
[1743233021497,0.30245468,608.31,607.16,0.29731359]
[1743233021701,0.30245468,608.35,607.16,0.29731359]
[1743233022198,0.28639382,608.34,607.16,0.29731359]
[1743233022500,0.30245468,608.33,607.16,0.29731359]
[1743233024109,0.30245468,608.35,607.16,0.29731359]
[1743233024306,0.30245468,608.34,607.16,0.29731359]
[1743233024806,0.30245468,608.33,607.16,0.29731359]
[1743233025006,0.30245468,608.35,607.16,0.29731359]
[1743233025208,0.30245468,608.32,607.16,0.29731359]
[1743233025407,0.30245468,608.31,607.16,0.29731359]
[1743233025709,0.30245468,608.32,607.16,0.29731359]
[1743233025909,0.30245468,608.31,607.16,0.29731359]
[1743233026111,0.30245468,608.32,607.16,0.29731359]
[1743233026510,0.32875271,608.36,607.17,0.32939703]
[1743233027112,0.32875271,608.36,607.18,0.29722939]
[1743233027412,0.32875271,608.36,607.19,0.32938618]
[1743233027612,0.32875271,608.36,607.2,0.29722939]
[1743233028312,0.32875271,608.36,607.21,0.32937533]
[1743233028712,0.32875271,608.36,607.22,0.29722939]
[1743233028913,0.32875271,608.36,607.23,0.32936449]
[1743233029116,0.32875271,608.36,607.24,0.29722939]
[1743233029313,0.32875271,608.36,607.25,0.32935364]
[1743233029711,0.30236624,608.35,607.26,0.29722939]
[1743233030014,0.30236624,608.35,607.27,0.32934279]
[1743233030408,0.30236624,608.35,607.28,0.29722939]
[1743233030612,0.32875271,608.36,607.29,0.32933195]
[1743233031213,2.50993003,609.08,607.29,0.32933195]
[1743233031410,0.32837487,609.06,607.29,0.32933195]
[1743233031615,0.30235969,609.05,607.29,0.32933195]
[1743233031916,0.32839104,609.03,607.29,0.32933195]
[1743233032115,0.30235969,609.02,607.29,0.32933195]
[1743233032316,0.32840722,609.0,607.29,0.32933195]
[1743233032518,0.30235969,608.99,607.29,0.32933195]
[1743233032914,0.3284234,608.97,607.29,0.32933195]
[1743233033114,0.30235969,608.96,607.29,0.32933195]
[1743233033315,0.32843958,608.94,607.29,0.32933195]
[1743233033715,0.30235969,608.93,607.29,0.32933195]
[1743233034015,0.32845576,608.91,607.29,0.32933195]
[1743233034216,0.30235969,608.9,607.29,0.32933195]
[1743233034418,0.32847194,608.88,607.29,0.32933195]
[1743233034718,0.30235969,608.87,607.29,0.32933195]
[1743233034917,0.32848273,608.86,607.29,0.32933195]
[1743233035120,0.30235969,608.85,607.29,0.32933195]
[1743233035322,0.32849352,608.84,607.29,0.32933195]
[1743233035619,0.30235969,608.83,607.29,0.32933195]
[1743233035819,0.30235969,608.83,607.29,1.26933195]
[1743233036220,0.32850431,608.82,607.29,1.26933195]
[1743233036414,0.30235969,608.81,607.29,1.26933195]
[1743233036619,0.32851511,608.8,607.29,1.26933195]
[1743233036815,0.30235969,608.79,607.29,1.26933195]
[1743233037220,0.2862619,608.78,607.29,1.26933195]
[1743233037419,0.30235969,608.77,607.29,1.26933195]
[1743233037823,0.2862619,608.78,607.29,1.26933195]
[1743233037824,0.3023478,608.76,607.29,1.26933195]
[1743233038022,0.3023478,608.77,607.29,1.26933195]
[1743233038324,0.3023478,608.76,607.29,1.26933195]
[1743233038521,0.32854209,608.75,607.29,1.26933195]
[1743233038721,0.3023478,608.74,607.3,0.29719053]
[1743233038922,0.3023478,608.74,607.31,0.3293211]
[1743233039220,0.32855288,608.73,607.32,0.29719053]
[1743233039421,0.3023478,608.72,607.33,0.32931025]
[1743233039722,0.32856368,608.71,607.34,0.29719053]
[1743233040021,0.3023478,608.7,607.35,0.32929941]
[1743233040217,0.32857447,608.69,607.35,0.32929941]
[1743233040423,0.3023478,608.68,607.36,0.29719053]
[1743233040921,0.3023478,608.68,607.37,0.32928857]
[1743233041322,0.3023478,608.68,607.38,0.29719053]
[1743233042120,0.3023478,608.68,607.39,0.32927772]
[1743233042325,0.58860987,608.67,607.4,0.29718699]
[1743233042724,0.30234562,608.66,607.4,0.29718699]
[1743233043927,0.30234562,608.66,607.4,1.11318699]
[1743233044226,0.30234562,608.66,607.41,0.29718699]
[1743233045127,0.30234562,608.67,607.41,0.29718699]
[1743233045322,0.28625601,608.65,607.41,0.29718699]
[1743233045520,0.30234562,608.64,607.41,0.29718699]
[1743233048228,0.28625954,608.63,607.41,0.29718699]
[1743233048725,0.30234562,608.62,607.41,0.29718699]
[1743233050229,0.28625954,608.63,607.4,0.816]
[1743233050431,0.30233546,608.62,607.41,0.29717687]
[1743233051224,0.30233546,608.67,607.41,0.29717687]
[1743233051431,0.58859971,608.61,607.41,0.29717687]
[1743233051625,0.30233546,608.6,607.4,1.1452723]
[1743233051826,0.32862846,608.59,607.4,1.1452723]
[1743233052025,0.30233546,608.58,607.4,1.1452723]
[1743233052235,0.32863926,608.57,607.4,1.1452723]
[1743233052436,0.30233546,608.56,607.4,1.1452723]
[1743233052734,0.32865006,608.55,607.4,1.1452723]
[1743233053040,0.30233546,608.54,607.4,1.1452723]
[1743233053233,0.32866087,608.53,607.4,1.1452723]
[1743233053539,0.30233546,608.52,607.4,1.1452723]
[1743233053734,0.32867167,608.51,607.4,1.1452723]
[1743233054135,0.32867167,608.51,607.4,1.8852723]
[1743233054334,0.58879526,608.5,607.4,1.8852723]
[1743233054539,0.32868247,608.49,607.4,1.8852723]
[1743233054739,0.63113928,608.49,607.4,1.8852723]
[1743233054935,0.30245681,608.48,607.4,1.8852723]
[1743233055138,0.32869327,608.47,607.4,1.8852723]
[1743233055640,0.30245681,608.46,607.4,1.8852723]
[1743233056041,0.32869327,608.47,607.4,1.8852723]
[1743233056340,0.30244086,608.45,607.4,1.8852723]
[1743233056540,0.30244086,608.44,607.4,1.8852723]
[1743233056740,0.30244086,608.46,607.4,1.8852723]
[1743233056944,0.32869327,608.47,607.4,1.8852723]
[1743233057138,0.30244213,608.45,607.4,1.8852723]
[1743233057441,0.30244213,608.44,607.4,1.8852723]
[1743233060245,0.30244213,608.46,607.4,1.8852723]
[1743233060446,0.28631842,608.43,607.4,1.8852723]
[1743233060642,0.30242437,608.42,607.4,1.8852723]
[1743233061146,0.30242239,608.41,607.4,1.8852723]
[1743233061441,0.30242239,608.42,607.4,1.8852723]
[1743233062047,0.30242239,608.42,607.4,2.5382723]
[1743233063151,0.30242239,608.41,607.4,2.5382723]
[1743233063346,0.58875495,608.41,607.4,2.5382723]
[1743233063650,0.28633256,608.41,607.4,2.5382723]
[1743233063848,0.30242239,608.4,607.4,2.5382723]
[1743233065453,0.28633256,608.41,607.4,2.5382723]
[1743233065654,0.30243603,608.4,607.4,2.5382723]
[1743233066255,0.30243603,608.46,607.4,2.5382723]
[1743233066452,0.58877094,608.39,607.4,2.5382723]
[1743233066658,0.30243603,608.38,607.4,2.5382723]
[1743233069158,0.30243603,608.37,607.4,2.5382723]
[1743233069553,0.30243603,608.36,607.4,2.5382723]
[1743233071359,0.30243603,608.36,607.4,3.1502723]
[1743233072254,0.30243603,608.35,607.4,3.1502723]
[1743233072460,0.2863302,608.37,607.4,3.1502723]
[1743233072660,0.30243603,608.36,607.4,3.1502723]
[1743233074962,0.2863302,608.37,607.4,3.1502723]
[1743233075158,0.30240103,608.35,607.4,3.1502723]
[1743233075356,0.30240103,608.34,607.4,3.1502723]
[1743233075557,0.2863302,608.37,607.4,3.1502723]
[1743233075861,0.30240129,608.36,607.4,3.1502723]
[1743233077958,0.30240129,608.46,607.41,0.29723581]
[1743233078162,0.30240129,608.45,607.41,0.29723581]
[1743233081264,0.30240129,608.44,607.41,0.29723581]
[1743233081565,0.30240129,608.43,607.41,0.29723581]
[1743233081965,0.30240129,608.43,607.41,1.09723581]
[1743233082172,0.30240129,608.43,607.41,1.69023581]
[1743233082363,0.30240129,608.43,607.42,0.29723581]
[1743233082559,0.30240129,608.43,607.41,1.393]
[1743233083566,0.28632078,608.44,607.41,1.393]
[1743233083768,0.30241816,608.43,607.41,1.393]
[1743233084164,0.30241816,608.46,607.41,1.393]
[1743233084363,0.30241816,608.42,607.41,1.393]
[1743233084563,0.30241816,608.41,607.41,1.393]
[1743233087167,0.302379,608.46,607.41,1.393]
[1743233087368,0.32869327,608.47,607.41,1.393]
[1743233088972,0.30237538,608.46,607.41,1.393]
[1743233089172,0.32869327,608.47,607.41,1.393]
[1743233089471,0.30237538,608.46,607.41,1.393]
[1743233089672,0.32869327,608.47,607.41,1.393]
[1743233090370,0.30237538,608.46,607.41,1.393]
[1743233091670,0.32869327,608.47,607.41,1.393]
[1743233092171,0.30237696,608.46,607.41,1.393]
[1743233092972,0.30237696,608.46,607.41,2.047]
[1743233093271,0.32869327,608.47,607.41,2.047]
[1743233096474,0.28630429,608.46,607.41,2.047]
[1743233098975,0.32869327,608.47,607.41,2.047]
[1743233099272,0.28630782,608.45,607.41,2.862]
[1743233101976,0.32869327,608.47,607.41,2.862]
[1743233102272,0.28631253,608.44,607.41,2.862]
[1743233104981,0.32869327,608.47,607.41,2.862]
[1743233105380,0.28631253,608.43,607.41,2.862]
[1743233106983,0.30239973,608.42,607.41,2.862]
[1743233108378,0.30239973,608.46,607.41,2.862]
[1743233108583,0.28631724,608.41,607.41,2.862]
[1743233108783,0.30239973,608.4,607.41,2.862]
[1743233111179,0.30239973,608.39,607.41,2.862]
[1743233111586,0.32869327,608.47,607.41,2.862]
[1743233111886,0.30237296,608.46,607.41,2.862]
[1743233117290,0.28631018,608.45,607.41,2.862]
[1743233117589,0.30237296,608.44,607.41,2.862]
[1743233120187,0.30237296,608.46,607.41,2.862]
[1743233120390,0.32869327,608.47,607.41,2.862]
[1743233120391,0.28631253,608.43,607.41,2.862]
[1743233121095,0.30238657,608.42,607.41,2.862]
[1743233123194,0.30238657,608.46,607.41,2.862]
[1743233123394,0.28631489,608.41,607.41,2.862]
[1743233124298,0.32869327,608.47,607.41,2.862]
[1743233125198,0.30236127,608.46,607.42,0.29717074]
[1743233125401,0.32869327,608.47,607.42,0.29717074]
[1743233125793,0.32869327,608.47,607.41,0.815]
[1743233125995,0.32869327,608.47,607.42,0.2971657]
[1743233126801,0.32869327,608.47,607.42,0.62642716]
[1743233127002,0.32869327,608.47,607.43,0.2971657]
[1743233127502,0.32869327,608.47,607.42,0.32926146]
[1743233127802,0.30236584,608.46,607.42,1.02226146]
[1743233128004,0.30237097,608.45,607.42,1.02226146]
[1743233128302,0.30237097,608.44,607.43,0.29720852]
[1743233128603,0.30237097,608.43,607.43,0.29720852]
[1743233128898,0.30237097,608.42,607.43,0.29720852]
[1743233129098,0.30237097,608.46,607.43,0.93320852]
[1743233129303,0.28630664,608.41,607.44,0.29720852]
[1743233129498,0.30237097,608.4,607.44,0.29720852]
[1743233130605,0.28630664,608.41,607.43,1.389]
[1743233131499,0.28630664,608.41,607.43,2.098]
[1743233132104,0.32869327,608.47,607.43,2.098]
[1743233132298,0.28630311,608.41,607.43,2.098]
[1743233134601,0.32869327,608.47,607.43,2.098]
[1743233140112,0.32869327,608.47,607.43,2.42725604]
[1743233140314,0.32869327,608.47,607.44,0.32925062]
[1743233142314,0.32869327,608.47,607.45,0.2971455]
[1743233144415,0.32869327,608.47,607.44,0.32925062]
[1743233147015,0.32869327,608.47,607.45,0.29714474]
[1743233149817,0.32869327,608.47,607.46,0.708]
[1743233150013,0.32869327,608.47,607.47,0.29714474]
[1743233150416,0.28617715,608.56,607.48,0.32922894]
[1743233150613,0.28617715,608.56,607.49,0.29714474]
[1743233151111,0.28617715,608.56,607.48,0.32922894]
[1743233153018,2.50993003,609.11,607.48,0.32922894]
[1743233153213,0.32835869,609.09,607.48,0.32922894]
[1743233153413,0.2861795,608.6,607.49,0.936]
[1743233153616,0.32835869,609.09,607.49,0.936]
[1743233153816,0.3022964,609.08,607.49,0.936]
[1743233154018,0.32837487,609.06,607.49,0.936]
[1743233154318,0.3022964,609.05,607.49,0.936]
[1743233154518,0.32839104,609.03,607.5,0.29714193]
[1743233154719,0.3022964,609.02,607.5,0.29714193]
[1743233154918,0.32840722,609.0,607.5,0.29714193]
[1743233155214,0.3022964,608.99,607.5,0.29714193]
[1743233155415,0.3284234,608.97,607.5,0.29714193]
[1743233155621,0.3022964,608.96,607.5,0.29714193]
[1743233156119,0.3022964,608.96,607.51,0.874]
[1743233156320,0.61462663,608.95,607.51,0.874]
[1743233156619,0.63073598,608.94,607.51,0.874]
[1743233156918,0.63074137,608.93,607.51,0.874]
[1743233157121,0.63074677,608.92,607.51,0.874]
[1743233157323,0.63075216,608.91,607.51,0.874]
[1743233157617,0.63075755,608.9,607.51,0.874]
[1743233157821,0.3022964,608.89,607.51,0.874]
[1743233158021,0.32847194,608.88,607.51,0.874]
[1743233158223,0.3022964,608.87,607.51,0.874]
[1743233158419,0.32848273,608.86,607.51,0.874]
[1743233158720,0.3022964,608.85,607.51,0.874]
[1743233159024,0.32849352,608.84,607.51,0.874]
[1743233159218,0.3022964,608.83,607.51,0.874]
[1743233159423,0.32850431,608.82,607.51,0.874]
[1743233159618,0.3022964,608.81,607.51,0.874]
[1743233159818,0.32851511,608.8,607.51,0.874]
[1743233160023,0.3022964,608.79,607.51,0.874]
[1743233160224,0.3285259,608.78,607.51,0.874]
[1743233160521,0.3022964,608.77,607.51,0.874]
[1743233162327,0.3022964,608.77,607.52,0.832]
[1743233162527,0.28621481,608.76,607.52,0.832]
[1743233162723,0.30230033,608.75,607.52,0.832]
[1743233164230,0.63084242,608.75,607.52,0.832]
[1743233164427,0.30230033,608.74,607.52,0.832]
[1743233164625,0.32855288,608.73,607.52,0.832]
[1743233164824,0.30230033,608.72,607.52,0.832]
[1743233165023,0.32856368,608.71,607.52,0.832]
[1743233165429,0.30230033,608.7,607.52,0.832]
[1743233165625,0.32857447,608.69,607.52,0.832]
[1743233165825,0.3023373,608.68,607.52,0.832]
[1743233166029,0.32858527,608.67,607.52,0.832]
[1743233166230,0.3023373,608.66,607.52,0.832]
[1743233170834,0.63092797,608.66,607.52,0.832]
[1743233171036,0.3023373,608.65,607.52,0.832]
[1743233171335,0.32860147,608.64,607.52,0.832]
[1743233171535,0.3023373,608.63,607.52,0.832]
[1743233171835,0.32861227,608.62,607.52,0.832]
[1743233172141,0.3023373,608.61,607.52,0.832]
[1743233172530,0.32862306,608.6,607.52,0.832]
[1743233172834,0.3023373,608.59,607.52,0.832]
[1743233173335,0.3023373,608.59,607.52,1.468]
[1743233174340,0.3023373,608.59,607.52,2.192]
[1743233175538,0.28626307,608.58,607.52,2.192]
[1743233175833,0.3023373,608.57,607.52,2.192]
[1743233176939,0.28626307,608.58,607.52,2.192]
[1743233177141,0.30235463,608.57,607.52,2.192]
[1743233177340,0.28626307,608.57,607.52,2.192]
[1743233177641,0.30235463,608.56,607.52,2.192]
[1743233179241,0.30235463,608.56,607.52,2.978]
[1743233180337,0.28627014,608.55,607.52,2.978]
[1743233180734,0.30235463,608.54,607.52,2.978]
[1743233182344,0.30235463,608.54,607.52,3.849]
[1743233183246,0.32862306,608.6,607.52,3.849]
[1743233183247,0.30235463,608.59,607.52,3.849]
[1743233183449,0.30235463,608.58,607.52,3.849]
[1743233183747,0.30235463,608.57,607.52,3.849]
[1743233184049,0.30235463,608.59,607.52,3.849]
[1743233184243,0.30235463,608.58,607.52,3.849]
[1743233184446,0.28626543,608.56,607.52,3.849]
[1743233184847,0.30235463,608.55,607.52,3.849]
[1743233185952,0.30235463,608.55,607.53,0.29719376]
[1743233186347,0.30235463,608.59,607.53,0.29719376]
[1743233186548,0.30235463,608.58,607.53,0.29719376]
[1743233186751,0.30235463,608.59,607.53,0.29719376]
[1743233187349,0.28626543,608.58,607.53,0.29719376]
[1743233187752,0.30235463,608.57,607.53,0.29719376]
[1743233190857,0.30234955,608.56,607.54,0.29719093]
[1743233191056,0.30234955,608.57,607.53,0.29719093]
[1743233191256,0.30234955,608.56,607.54,0.29719093]
[1743233191459,0.30234955,608.57,607.52,2.293]
[1743233191756,0.30234955,608.56,607.52,3.249]
[1743233192052,0.30234955,608.57,607.52,3.249]
[1743233192253,0.30231408,608.56,607.52,3.249]
[1743233192558,0.28626543,608.58,607.52,3.249]
[1743233192758,0.30230978,608.57,607.52,3.249]
[1743233193155,0.30230978,608.57,607.52,4.095]
[1743233193353,0.28626543,608.58,607.52,4.095]
[1743233195059,0.32862306,608.6,607.52,4.095]
[1743233195358,0.28625836,608.57,607.52,4.095]
[1743233198062,0.32862306,608.6,607.52,4.095]
[1743233198459,0.28624188,608.56,607.52,4.095]
[1743233200969,0.32862306,608.6,607.52,4.095]
[1743233201668,0.30234296,608.59,607.52,4.095]
[1743233202367,0.2862772,608.58,607.52,4.095]
[1743233202569,0.30234296,608.57,607.52,4.095]
[1743233203369,0.2862772,608.58,607.52,4.095]
[1743233204071,0.32862306,608.6,607.52,4.095]
[1743233205166,0.28621481,608.59,607.52,4.095]
[1743233206970,0.32862306,608.6,607.52,4.095]
[1743233208270,0.28617362,608.59,607.52,4.095]
[1743233209569,0.30231872,608.58,607.52,4.095]
[1743233212271,0.30231914,608.57,607.52,4.095]
[1743233212573,0.30231914,608.56,607.53,0.29716107]
[1743233212871,0.30231914,608.58,607.53,0.29716107]
[1743233213070,0.30231914,608.57,607.53,0.29716107]
[1743233213466,0.30231914,608.56,607.53,0.29716107]
[1743233215275,0.28624306,608.57,607.52,0.636]
[1743233215469,0.30229895,608.56,607.53,0.29714048]
[1743233215973,0.30229895,608.56,607.53,1.71014048]
[1743233216368,0.30229895,608.59,607.54,0.29714048]
[1743233216572,0.28623011,608.59,607.53,1.413]
[1743233216773,0.30229947,608.58,607.54,0.29714099]
[1743233219374,0.28623482,608.57,607.54,0.29714099]
[1743233219870,0.30229947,608.56,607.54,0.29714099]
[1743233222779,0.28623482,608.57,607.53,1.413]
[1743233225080,0.32862306,608.6,607.53,1.413]
[1743233225382,0.28623364,608.56,607.53,1.413]
[1743233226779,0.28623364,608.56,607.54,0.32919643]
[1743233226979,0.32862306,608.6,607.54,0.32919643]
[1743233227175,0.32862306,608.6,607.55,0.29709613]
[1743233227379,0.32862306,608.6,607.56,0.32918559]
[1743233227580,0.32862306,608.6,607.57,0.29709613]
[1743233227781,0.32862306,608.6,607.58,0.32917475]
[1743233228182,0.32862306,608.6,607.59,0.29709613]
[1743233228384,0.32862306,608.6,607.6,0.32916392]
[1743233229884,0.32862306,608.6,607.61,0.602]
[1743233231286,2.50993003,609.26,607.61,0.602]
[1743233231487,0.32827785,609.24,607.62,0.62621752]
[1743233231689,0.32827785,609.24,607.63,0.32914767]
[1743233231888,0.30222004,609.23,607.64,0.29706444]
[1743233232088,0.32829402,609.21,607.64,0.29706444]
[1743233232388,0.30222004,609.2,607.64,0.29706444]
[1743233232589,0.32831018,609.18,607.64,0.29706444]
[1743233232889,0.30221935,609.17,607.65,0.29706108]
[1743233233188,0.32832635,609.15,607.63,0.32914767]
[1743233233389,0.30221935,609.14,607.64,0.29705406]
[1743233233584,0.32834252,609.12,607.64,0.29705406]
[1743233233787,0.30221935,609.11,607.64,0.29705406]
[1743233234083,0.3283533,609.1,607.64,0.29705406]
[1743233234284,0.30221935,609.09,607.64,0.29705406]
[1743233234486,0.32836409,609.08,607.64,0.29705406]
[1743233234788,0.30221935,609.07,607.65,0.541]
[1743233234985,0.32837487,609.06,607.65,0.541]
[1743233235289,0.30221935,609.05,607.65,0.541]
[1743233235489,0.32838565,609.04,607.65,0.541]
[1743233235689,0.30221935,609.03,607.65,0.541]
[1743233235889,0.32839644,609.02,607.65,0.541]
[1743233236086,0.30221935,609.01,607.65,0.541]
[1743233236383,0.32840722,609.0,607.65,0.541]